{"text_format":"1","workbook":"xlsx","n_sheets":2,"sheets":["vlookup","NoToTxt"],"not_rendered":{"charts":0,"images":0,"macros":1,"external_links":0,"defined_names":0,"comments":0,"pivot_tables":0},"unopened":[],"bounds":{"document_bytes":16777216,"sheet_cells":100000,"rows_first":2000,"rows_last":500,"rows_between":2000,"halvings":0,"cell_chars":16384,"cell_head_chars":4096},"cells_cut":0,"cells_raw":0,"read":"whole","date_system":"1900"}

{"sheet":"vlookup","index":0,"n_rows":21,"n_cols":11,"rows_kept":21,"cut":false,"hidden":false,"merged":[]}
["الرقم","كتابة",null,null,null,null,null,null,null,"الرقم","كتابة"]
[1,{"$f":"VLOOKUP($A2,Table1[],2,0)","v":"الأول"},null,null,"=VLOOKUP($A2;Table1;2;0)",null,null,null,null,1,"الأول"]
[2,{"$f":"VLOOKUP($A3,Table1[],2,0)","v":"الثاني"},null,null,null,null,null,null,null,2,"الثاني"]
[3,{"$f":"VLOOKUP($A4,Table1[],2,0)","v":"الثالث"},null,null,null,null,null,null,null,3,"الثالث"]
[4,{"$f":"VLOOKUP($A5,Table1[],2,0)","v":"الرابع"},null,null,null,null,null,null,null,4,"الرابع"]
[5,{"$f":"VLOOKUP($A6,Table1[],2,0)","v":"الخامس"},null,null,null,null,null,null,null,5,"الخامس"]
[8,{"$f":"VLOOKUP($A7,Table1[],2,0)","v":"الثامن"},null,null,null,null,null,null,null,6,"السادس"]
[7,{"$f":"VLOOKUP($A8,Table1[],2,0)","v":"السابع"},null,null,null,null,null,null,null,7,"السابع"]
[8,{"$f":"VLOOKUP($A9,Table1[],2,0)","v":"الثامن"},null,null,null,null,null,null,null,8,"الثامن"]
[9,{"$f":"VLOOKUP($A10,Table1[],2,0)","v":"التاسع"},null,null,null,null,null,null,null,9,"التاسع"]
[10,{"$f":"VLOOKUP($A11,Table1[],2,0)","v":"العاشر"},null,null,null,null,null,null,null,10,"العاشر"]
[11,{"$f":"VLOOKUP($A12,Table1[],2,0)","v":"الحادي عشر"},null,null,null,null,null,null,null,11,"الحادي عشر"]
[12,{"$f":"VLOOKUP($A13,Table1[],2,0)","v":"الثاني عشر"},null,null,null,null,null,null,null,12,"الثاني عشر"]
[13,{"$f":"VLOOKUP($A14,Table1[],2,0)","v":"الثالث عشر"},null,null,null,null,null,null,null,13,"الثالث عشر"]
[14,{"$f":"VLOOKUP($A15,Table1[],2,0)","v":"الرابع عشر"},null,null,null,null,null,null,null,14,"الرابع عشر"]
[15,{"$f":"VLOOKUP($A16,Table1[],2,0)","v":"الخامس عشر"},null,null,null,null,null,null,null,15,"الخامس عشر"]
[16,{"$f":"VLOOKUP($A17,Table1[],2,0)","v":"السادس عشر"},null,null,null,null,null,null,null,16,"السادس عشر"]
[17,{"$f":"VLOOKUP($A18,Table1[],2,0)","v":"السابع عشر"},null,null,null,null,null,null,null,17,"السابع عشر"]
[18,{"$f":"VLOOKUP($A19,Table1[],2,0)","v":"الثامن عشر"},null,null,null,null,null,null,null,18,"الثامن عشر"]
[19,{"$f":"VLOOKUP($A20,Table1[],2,0)","v":"التاسع عشر"},null,null,null,null,null,null,null,19,"التاسع عشر"]
[20,{"$f":"VLOOKUP($A21,Table1[],2,0)","v":"العشرون"},null,null,null,null,null,null,null,20,"العشرون"]

{"sheet":"NoToTxt","index":1,"n_rows":21,"n_cols":5,"rows_kept":21,"cut":false,"hidden":false,"merged":[]}
["الرقم","كتابة"]
[1,{"$f":"NoToTxt(Table24[[#This Row],[الرقم]],\"\",\"\")","v":"الأول  "},null,null,"=NoToTxt([@الرقم];\"\";\"\")"]
[2,{"$f":"NoToTxt(Table24[[#This Row],[الرقم]],\"\",\"\")","v":"الثاني  "}]
[3,{"$f":"NoToTxt(Table24[[#This Row],[الرقم]],\"\",\"\")","v":"الثالث  "}]
[4,{"$f":"NoToTxt(Table24[[#This Row],[الرقم]],\"\",\"\")","v":"الرابع  "}]
[5,{"$f":"NoToTxt(Table24[[#This Row],[الرقم]],\"\",\"\")","v":"الخامس  "}]
[8,{"$f":"NoToTxt(Table24[[#This Row],[الرقم]],\"\",\"\")","v":"الثامن  "}]
[7,{"$f":"NoToTxt(Table24[[#This Row],[الرقم]],\"\",\"\")","v":"السابع  "}]
[8,{"$f":"NoToTxt(Table24[[#This Row],[الرقم]],\"\",\"\")","v":"الثامن  "}]
[9,{"$f":"NoToTxt(Table24[[#This Row],[الرقم]],\"\",\"\")","v":"التاسع  "}]
[10,{"$f":"NoToTxt(Table24[[#This Row],[الرقم]],\"\",\"\")","v":"العاشر  "}]
[11,{"$f":"NoToTxt(Table24[[#This Row],[الرقم]],\"\",\"\")","v":"الحادي عشر  "}]
[12,{"$f":"NoToTxt(Table24[[#This Row],[الرقم]],\"\",\"\")","v":"الثاني عشر  "}]
[13,{"$f":"NoToTxt(Table24[[#This Row],[الرقم]],\"\",\"\")","v":"الثالث عشر  "}]
[14,{"$f":"NoToTxt(Table24[[#This Row],[الرقم]],\"\",\"\")","v":"الرابع عشر  "}]
[15,{"$f":"NoToTxt(Table24[[#This Row],[الرقم]],\"\",\"\")","v":"الخامس عشر  "}]
[16,{"$f":"NoToTxt(Table24[[#This Row],[الرقم]],\"\",\"\")","v":"السادس عشر  "}]
[17,{"$f":"NoToTxt(Table24[[#This Row],[الرقم]],\"\",\"\")","v":"السابع عشر  "}]
[18,{"$f":"NoToTxt(Table24[[#This Row],[الرقم]],\"\",\"\")","v":"الثامن عشر  "}]
[19,{"$f":"NoToTxt(Table24[[#This Row],[الرقم]],\"\",\"\")","v":"التاسع عشر  "}]
[20,{"$f":"NoToTxt(Table24[[#This Row],[الرقم]],\"\",\"\")","v":"العشرون  "}]